bitfinex-derivatives/quotes_ETHF0:USTF0_20240910
["timestamp","ask_amount","ask_price","bid_price","bid_amount"]
[1726006307297,0.41965,2382.8,2382.6,1.51]
[1726006308198,0.41965,2382.8,2382.5,27.47]
[1726006308603,0.41966,2382.8,2382.5,27.47]
[1726006309105,1.58204,2382.9,2382.5,27.47]
[1726006309307,0.41965,2382.8,2382.5,27.47]
[1726006310701,1.1624,2382.9,2382.5,27.47]
[1726006310892,1.58203,2382.9,2382.5,27.47]
[1726006311093,1.1624,2382.9,2382.5,27.88969]
[1726006311406,1.58203,2382.9,2382.5,27.47]
[1726006312209,1.1624,2382.9,2382.5,27.8897]
[1726006312503,1.58204,2382.9,2382.5,27.47]
[1726006312807,0.41966,2382.8,2382.5,27.47]
[1726006313009,0.41965,2382.8,2382.5,27.47]
[1726006313208,1.58204,2382.9,2382.5,27.47]
[1726006314102,1.1624,2382.9,2382.5,27.8897]
[1726006314408,1.58203,2382.9,2382.5,27.8897]
[1726006315007,1.1624,2382.9,2382.5,27.8897]
[1726006315309,1.1624,2382.9,2382.7,3.27]
[1726006315896,1.58203,2382.9,2382.7,3.27]
[1726006316302,1.1624,2382.9,2382.5,27.47]
[1726006316613,0.41966,2382.8,2382.5,27.47]
[1726006316902,1.58204,2382.9,2382.5,27.47]
[1726006317107,0.41965,2382.8,2382.5,27.47]
[1726006317408,1.1624,2382.9,2382.6,0.41968]
[1726006317609,1.1624,2382.9,2382.5,27.8897]
[1726006317610,1.58203,2382.9,2382.5,27.8897]
[1726006317800,0.41966,2382.8,2382.5,3.27]
[1726006318208,1.1624,2382.9,2382.7,3.27]
[1726006318504,1.58203,2382.9,2382.7,3.27]
[1726006319903,1.1624,2382.9,2382.7,3.27]
[1726006320103,1.1624,2382.9,2382.7,3.68965]
[1726006320609,1.1624,2382.9,2382.7,3.27]
[1726006321004,0.41965,2382.8,2382.7,3.27]
[1726006321804,4.1968,2382.8,2382.5,3.27]
[1726006322008,1.1624,2382.9,2382.2,0.41975]
[1726006322009,0.41971,2382.5,2382.2,0.41975]
[1726006322317,0.7833,2382.4,2382.3,0.41974]
[1726006323011,0.7833,2382.4,2382.2,3.68974]
[1726006323910,0.7833,2382.4,2382.2,3.68975]
[1726006324604,0.7833,2382.4,2382.2,3.27]
[1726006324806,0.41974,2382.3,2382.2,3.27]
[1726006325002,0.7833,2382.4,2382.1,27.47]
[1726006325205,0.41975,2382.2,2382.1,27.47]
[1726006325609,0.41975,2382.3,2382.1,27.47]
[1726006326005,0.41975,2382.2,2382.1,27.47]
[1726006326201,4.1976,2382.3,2381.6,4.57263196]
[1726006326412,4.1976,2382.3,2381.6,3.68986]
[1726006326413,0.41982,2381.9,2381.6,3.68986]
[1726006326613,0.3656,2382.1,2381.6,3.68986]
[1726006326614,0.3655,2381.8,2381.7,0.41984]
[1726006326813,6.839,2382.7,2382.1,0.41977]
[1726006327020,1.04915,2382.8,2382.1,0.41977]
[1726006327021,0.3981,2382.4,2382.1,0.41977]
[1726006327410,0.3981,2382.4,2382.3,3.27]
[1726006327618,0.81782,2382.4,2382.3,3.27]
[1726006328518,5.01542,2382.4,2382.3,3.27]
[1726006329213,0.81782,2382.4,2382.3,3.27]
[1726006331810,0.81782,2382.4,2382.1,3.68977]
[1726006331811,0.41975,2382.3,2382.1,3.68977]
[1726006332014,0.3981,2382.4,2382.1,3.27]
[1726006332015,0.41975,2382.2,2382.1,3.27]
[1726006332820,0.41975,2382.2,2381.8,3.27]
[1726006332821,0.41981,2381.9,2381.8,3.27]
[1726006333823,0.78941,2381.9,2381.8,3.27]
[1726006334021,0.41982,2381.8,2381.7,24.2]
[1726006337025,5.66779,2381.8,2381.7,24.2]
[1726006337218,1.46939,2381.8,2381.7,24.2]
[1726006337424,0.41986,2381.6,2381.4,3.68988]
[1726006337819,0.41986,2381.6,2381.5,24.2]
[1726006338014,0.3896,2381.7,2381.6,0.41986]
[1726006338228,0.3896,2381.7,2381.6,3.68986]
[1726006338418,0.41983,2381.8,2381.6,3.68986]
[1726006338419,0.78941,2381.9,2381.7,0.41983]
[1726006338626,0.78941,2381.9,2381.8,3.27]
[1726006339020,1.04957,2381.8,2381.6,3.27]
[1726006339214,0.41984,2381.7,2381.6,3.27]
[1726006339420,0.82174,2381.7,2381.6,3.27]
[1726006340833,1.87135,2381.7,2381.6,3.27]
[1726006341331,0.82174,2381.7,2381.6,3.27]
[1726006343432,1.87135,2381.7,2381.6,3.27]
[1726006343626,0.41986,2381.6,2381.5,24.2]
[1726006343835,0.41988,2381.5,2381.4,3.27]
[1726006344033,0.81308,2381.5,2381.4,3.27]
[1726006344233,0.81308,2381.5,2381.4,27.47]
[1726006345433,13.11168,2381.5,2381.4,24.2]
[1726006345634,0.41998,2380.9,2380.8,0.211]
[1726006345828,0.3787,2381.4,2380.8,3.27]
[1726006346140,0.3787,2381.4,2380.9,24.2]
[1726006346141,0.41997,2381.0,2380.9,24.2]
[1726006346533,0.41997,2381.0,2380.8,3.27]
[1726006347044,0.41997,2381.0,2380.8,27.47]
[1726006347336,0.398,2380.9,2380.8,27.47]
[1726006348647,0.81798,2380.9,2380.8,27.47]
[1726006349038,0.398,2380.9,2380.8,27.47]
[1726006350748,0.398,2380.9,2380.8,3.27]
[1726006350950,0.81798,2380.9,2380.8,3.27]
[1726006351155,0.81798,2380.9,2380.3,1.09119542]
[1726006351156,0.42002,2380.7,2380.6,3.27]
[1726006351655,0.79851,2380.8,2380.6,3.27]
[1726006351852,0.79851,2380.8,2380.6,3.69004]
[1726006352756,0.79851,2380.8,2380.6,3.27]
[1726006352956,0.42002,2380.7,2380.6,3.27]
[1726006353456,0.42005,2380.5,2380.4,27.47]
[1726006354451,0.42005,2380.5,2380.4,27.89007]
[1726006354955,0.42005,2380.5,2380.4,27.47]
[1726006359462,0.42004,2380.6,2380.4,27.89006]
[1726006359756,1.04969,2381.6,2380.5,7.4708]
[1726006360056,4.095,2381.5,2381.2,3.27]
[1726006360254,0.3688,2381.6,2381.4,3.27]
[1726006360556,0.3688,2381.6,2381.5,24.2]
[1726006360751,0.7406,2381.9,2381.5,24.2]
[1726006360949,0.41983,2381.8,2381.5,24.2]
[1726006361455,0.41985,2381.7,2381.5,24.2]
[1726006361950,0.41983,2381.8,2381.5,24.2]
[1726006362657,0.41984,2381.7,2381.5,24.2]
[1726006364351,0.41986,2381.6,2381.5,24.2]
[1726006364748,4.61906,2381.6,2381.5,24.2]
[1726006364953,4.1992,2381.6,2381.5,24.2]
[1726006365457,10.61906,2381.6,2381.5,24.2]
[1726006365658,10.1992,2381.6,2381.0,3.27]
[1726006365863,0.41992,2381.3,2381.0,3.27]
[1726006366059,0.3734,2381.2,2381.1,24.2]
[1726006367262,4.99333,2381.2,2381.1,24.2]
[1726006367757,0.41998,2381.0,2380.8,3.27]
[1726006368064,0.41998,2381.0,2380.9,24.2]
[1726006369661,0.3877,2381.4,2380.9,24.2]
[1726006369856,0.3877,2381.4,2381.0,3.27]
[1726006369857,0.3782,2381.1,2381.0,3.27]
[1726006370159,0.41997,2381.0,2380.9,24.2]
[1726006370359,0.80507,2381.0,2380.9,24.2]
[1726006374363,0.3782,2381.1,2380.9,27.47]
[1726006374560,0.79816,2381.1,2380.9,27.47]
[1726006376465,0.41997,2381.0,2380.9,27.47]
[1726006380871,0.41997,2381.0,2380.9,24.2]
[1726006383269,0.42002,2380.7,2380.6,0.42004]
[1726006383979,0.42002,2380.7,2380.6,24.62004]
[1726006384870,0.42002,2380.7,2380.6,24.2]
[1726006386172,6.72092,2380.7,2380.6,24.2]
[1726006386571,5.67087,2380.7,2380.6,24.2]
[1726006388365,1.47007,2380.7,2380.6,24.2]
[1726006388565,5.67087,2380.7,2380.6,24.2]
[1726006389080,1.47007,2380.7,2380.6,24.2]
[1726006390789,1.04991,2381.1,2380.6,24.2]
[1726006390983,4.095,2382.0,2381.4,1.04972]
[1726006391286,3.83594308,2382.5,2381.4,1.04972]
[1726006391287,0.41974,2382.3,2381.9,3.27]
[1726006391467,0.41974,2382.3,2382.1,3.27]
[1726006391468,0.3937,2382.3,2382.1,3.27]
[1726006392683,0.3937,2382.3,2382.0,24.2]
[1726006392872,0.41976,2382.2,2382.0,24.2]
[1726006395784,0.41977,2382.1,2382.0,24.2]
[1726006396082,0.7685,2382.1,2382.0,24.2]
[1726006396387,5.38667,2382.1,2382.0,24.2]
[1726006415399,1.18827,2382.1,2382.0,24.2]
[1726006416096,5.38667,2382.1,2382.0,24.2]
[1726006416293,1.18827,2382.1,2382.0,24.2]
[1726006416799,5.38667,2382.1,2382.0,24.2]
[1726006416997,1.18827,2382.1,2382.0,24.2]
[1726006417499,5.38667,2382.1,2382.0,24.2]
[1726006418095,1.18827,2382.1,2382.0,24.2]
[1726006418295,5.38667,2382.1,2382.0,24.2]
[1726006419898,1.18827,2382.1,2382.0,24.2]
[1726006420094,5.38667,2382.1,2382.0,24.2]
[1726006420400,1.18827,2382.1,2382.0,24.2]
[1726006421099,5.38667,2382.1,2382.0,24.2]
[1726006421803,1.18827,2382.1,2382.0,24.2]
[1726006422188,5.38667,2382.1,2382.0,24.2]
[1726006422394,1.18827,2382.1,2382.0,24.2]
[1726006422603,5.38667,2382.1,2382.0,24.2]
[1726006423302,4.095,2382.9,2382.0,34.3984]
[1726006423509,3.28795121,2383.2,2382.8,3.27]
[1726006423510,0.3857,2383.2,2382.8,3.27]
[1726006423694,1.04872,2383.8,2383.1,3.27]
[1726006424008,1.04872,2383.8,2383.4,3.27]
[1726006424009,0.41953,2383.5,2383.4,3.27]
[1726006424901,0.7676,2383.7,2383.2,27.47]
[1726006425099,0.41955,2383.4,2383.2,27.47]
[1726006425706,0.41954,2383.5,2383.2,27.47]
[1726006426099,0.41955,2383.4,2383.2,27.47]
[1726006426409,0.41953,2383.5,2383.2,27.47]
[1726006426705,0.41954,2383.4,2383.2,27.47]
[1726006428311,0.41954,2383.5,2383.2,27.47]
[1726006428611,0.41954,2383.4,2383.2,27.47]
[1726006429305,1.81635,2383.7,2383.2,27.47]
[1726006429505,0.41955,2383.4,2383.2,27.47]
[1726006429906,1.81635,2383.7,2383.2,27.47]
[1726006429907,0.41954,2383.5,2383.2,27.47]
[1726006430204,0.41953,2383.5,2383.2,27.47]
[1726006430402,0.7676,2383.7,2383.1,0.41959]
[1726006430403,4.51445,2384.0,2383.4,3.27]
[1726006430601,4.51445,2384.0,2383.0,3.27]
[1726006430602,0.41945,2384.0,2383.8,3.27]
[1726006431006,0.41945,2384.0,2383.9,24.2]
[1726006431198,0.3739,2384.1,2383.9,24.2]
[1726006431400,0.79333,2384.1,2383.9,24.2]
[1726006432311,0.3739,2384.1,2383.9,24.2]
[1726006432804,0.79332,2384.1,2383.9,24.2]
[1726006433009,0.3739,2384.1,2383.9,24.2]
[1726006434012,0.79332,2384.1,2383.9,24.2]
[1726006434709,0.41945,2383.9,2383.8,3.27]
[1726006434911,0.41945,2384.0,2383.8,3.27]
[1726006435614,0.41945,2383.9,2383.8,3.27]
[1726006437213,0.7577,2384.1,2383.8,3.27]
[1726006437411,0.41945,2384.0,2383.8,3.27]
[1726006437905,0.41945,2383.9,2383.8,3.27]
[1726006442717,0.41945,2383.9,2383.6,3.27]
[1726006442915,0.41953,2383.5,2383.4,3.27]
[1726006443122,0.4195,2383.7,2383.4,3.68954]
[1726006443415,0.41948,2383.8,2383.6,3.27]
[1726006443615,5.90127,2384.1,2383.6,3.68951]
[1726006443616,0.41947,2383.9,2383.6,3.68951]
[1726006444117,0.41947,2383.9,2383.8,3.27]
[1726006444509,5.90127,2384.1,2383.8,3.27]
[1726006444714,0.41945,2383.9,2383.8,3.27]
[1726006445305,0.41945,2383.9,2383.3,24.2]
[1726006445306,1.04862,2384.0,2383.6,3.27]
[1726006445508,0.41949,2383.7,2383.6,3.27]
[1726006446219,0.369,2383.8,2383.6,3.27]
[1726006446220,0.78849,2383.8,2383.6,3.27]
[1726006446516,0.41949,2383.7,2383.6,3.27]
[1726006449919,0.78848,2383.8,2383.6,3.6895]
[1726006450215,0.78848,2383.8,2383.6,3.27]
[1726006450610,1.131,2384.1,2383.6,3.27]
[1726006450811,1.131,2384.1,2383.7,0.41948]
[1726006451021,1.131,2384.1,2383.8,3.27]
[1726006451022,0.41945,2384.0,2383.8,3.27]
[1726006451220,0.41945,2383.9,2383.8,3.27]
[1726006451612,0.41949,2383.8,2383.6,3.6895]
[1726006452210,1.131,2384.1,2383.7,0.41949]
[1726006452418,0.41946,2383.9,2383.7,0.41948]
[1726006454021,0.41945,2384.0,2383.7,0.41949]
[1726006454216,0.41946,2383.9,2383.8,0.41947]
[1726006454715,0.41945,2383.9,2383.8,3.27]
[1726006454916,0.41949,2383.7,2383.6,3.27]
[1726006455315,0.41948,2383.8,2383.6,3.68951]
[1726006456217,0.41949,2383.7,2383.6,3.68951]
[1726006456417,1.43842,2384.0,2383.6,3.68951]
[1726006456616,0.41948,2383.8,2383.6,3.68951]
[1726006457112,0.41948,2383.8,2383.6,3.6895]
[1726006457520,0.41949,2383.7,2383.6,3.68951]
[1726006457720,0.41949,2383.8,2383.6,3.68951]
[1726006458016,0.41949,2383.7,2383.6,3.27]
[1726006458217,0.80829,2383.7,2383.6,3.27]
[1726006458608,0.80829,2383.7,2383.6,3.68951]
[1726006458822,0.80829,2383.7,2383.6,3.27]
[1726006462016,1.85702,2383.7,2383.6,3.27]
[1726006462626,1.43753,2383.7,2383.4,3.68953]
[1726006462927,0.4018,2383.6,2383.4,3.68953]
[1726006463227,0.82132,2383.6,2383.4,3.68953]
[1726006464125,0.82132,2383.6,2383.5,1.51]
[1726006465031,1.8701,2383.6,2383.5,1.51]
[1726006469733,0.41953,2383.5,2383.4,2.60423475]
[1726006469934,0.80323,2383.5,2383.4,2.60423475]
[1726006470336,0.80323,2383.5,2383.4,3.13712645]
[1726006470635,1.85205,2383.5,2383.4,3.13712645]
[1726006470833,1.85205,2383.5,2383.4,3.13712685]
[1726006471024,1.85205,2383.5,2383.4,2.60423475]
[1726006471426,1.85205,2383.5,2383.4,1.51]
[1726006473835,7.38295121,2384.3,2383.4,10.13180449]
[1726006474131,0.4026,2383.9,2383.7,1.09223273]
[1726006474325,0.4026,2383.9,2383.8,1.51]
[1726006474726,0.82205,2383.9,2383.8,1.51]
[1726006474933,0.41947,2383.8,2383.7,1.51]
[1726006475134,0.41947,2383.8,2383.7,2.05036782]
[1726006476234,0.41947,2383.8,2383.7,1.63260055]
[1726006476739,0.41947,2383.8,2383.7,0.54036782]
[1726006477734,0.41947,2383.8,2383.6,4.36223273]
[1726006477930,0.41947,2383.8,2383.7,0.54035555]
[1726006478334,0.82206,2383.9,2383.7,0.54035555]
[1726006478539,0.82206,2383.9,2383.6,4.36223273]
[1726006478837,0.41947,2383.8,2383.6,4.36223273]
[1726006479040,0.4026,2383.9,2383.6,4.36223273]
[1726006479041,0.82207,2383.9,2383.6,4.36223273]
[1726006479230,0.41947,2383.8,2383.6,4.36223273]
[1726006479740,0.41947,2383.8,2383.7,0.54041146]
[1726006479933,0.41947,2383.8,2383.6,4.36223273]
[1726006480338,0.41947,2383.8,2383.7,0.54044257]
[1726006480544,0.82206,2383.9,2383.7,0.54044257]
[1726006480846,0.82206,2383.9,2383.6,4.36223273]
[1726006482035,0.82206,2383.9,2383.7,0.54044661]
[1726006482239,0.82207,2383.9,2383.6,4.36223273]
[1726006482437,0.82207,2383.9,2383.7,0.54044631]
[1726006482634,0.82207,2383.9,2383.6,4.36223273]
[1726006482834,0.82207,2383.9,2383.7,0.54044999]
[1726006483042,0.82207,2383.9,2383.6,4.36223273]
[1726006483242,0.82207,2383.9,2383.7,0.54044569]
[1726006483551,0.41948,2383.8,2383.6,4.36223273]
[1726006484430,0.4026,2383.9,2383.6,1.09223273]
[1726006484631,0.41949,2383.7,2383.6,1.09223273]
[1726006485033,0.41951,2383.6,2383.5,1.09223273]
[1726006485241,0.80721,2383.6,2383.5,3.03102]
[1726006487731,0.80721,2383.6,2383.5,2.49047347]
[1726006487934,0.80721,2383.6,2383.5,3.03101171]
[1726006491038,0.80721,2383.6,2383.5,3.03098264]
[1726006495747,0.80721,2383.6,2383.5,1.09223273]
[1726006498349,6.51241,2383.6,2383.5,1.09223273]
[1726006498645,6.51241,2383.6,2383.4,1.09223273]
[1726006498646,0.41953,2383.5,2383.4,1.09223273]
[1726006498841,0.78393,2383.5,2383.4,1.51]
[1726006499042,0.78393,2383.5,2383.4,2.60223273]
[1726006500944,1.16493,2383.5,2383.4,2.60223273]
[1726006501149,1.16493,2383.5,2383.4,1.09223273]
[1726006501742,0.41954,2383.4,2383.3,25.29223273]
[1726006501943,0.41954,2383.4,2383.3,26.69118093]
[1726006502548,0.41954,2383.4,2383.3,25.29223273]
[1726006502746,4.61554,2383.4,2383.3,25.29223273]
[1726006502941,0.41954,2383.4,2383.3,25.29223273]
[1726006503146,4.61554,2383.4,2383.3,25.29223273]
[1726006504444,4.61554,2383.4,2383.2,1.64135213]
[1726006504445,0.41956,2383.3,2383.2,1.09223273]
[1726006504641,1.46853,2383.2,2383.1,1.09223273]
[1726006504848,6.05463,2383.2,2383.1,1.09223273]
[1726006505153,5.00568,2383.2,2383.1,1.09223273]
[1726006506038,4.5861,2383.2,2383.1,1.09223273]
[1726006506252,0.41957,2383.3,2383.1,2.49127836]
[1726006506454,0.41957,2383.3,2383.1,1.09223273]
[1726006506747,0.41957,2383.3,2383.2,1.09223273]
[1726006507450,0.41958,2383.2,2383.1,1.09223273]
[1726006507652,0.41958,2383.2,2383.1,2.49118383]
[1726006509652,0.41958,2383.2,2383.1,2.85438383]
[1726006510258,0.81715,2383.4,2383.1,2.85438383]
[1726006510450,0.81715,2383.4,2383.1,1.45543273]
[1726006510755,0.3976,2383.4,2383.2,1.09223273]
[1726006510958,0.3976,2383.4,2383.2,1.48403273]
[1726006511455,0.81715,2383.4,2383.2,1.48403273]
[1726006512052,0.78393,2383.5,2383.2,1.48403273]
[1726006512360,0.3644,2383.5,2383.2,5.17359273]
[1726006512652,0.41952,2383.6,2383.3,1.09223273]
[1726006512860,0.41953,2383.5,2383.3,1.09223273]
[1726006513546,0.4195,2383.7,2383.4,11.04642204]
[1726006513757,0.78488,2383.8,2383.5,1.45749081]
[1726006515449,0.78488,2383.8,2383.5,1.87700081]
[1726006515450,0.3654,2383.8,2383.5,1.87700081]
[1726006515850,0.78488,2383.8,2383.5,1.87700081]
[1726006516148,0.78488,2383.8,2383.5,1.45749081]
[1726006516356,0.41949,2383.7,2383.5,1.45749081]
[1726006516654,0.78488,2383.8,2383.5,1.45749081]
[1726006516857,0.78488,2383.8,2383.5,0.3642]
[1726006517052,0.78488,2383.8,2383.5,0.78372]
[1726006517650,0.78488,2383.8,2383.5,0.3642]
[1726006518059,0.78488,2383.8,2383.5,0.78372]
[1726006520160,0.78488,2383.8,2383.5,0.3642]
[1726006520463,0.3654,2383.8,2383.5,0.3642]
[1726006521160,0.78488,2383.8,2383.5,0.3642]
[1726006521360,0.41949,2383.7,2383.5,0.3642]
[1726006521864,0.41949,2383.7,2383.5,1.45749081]
[1726006522459,7.38295121,2384.3,2383.6,8.00597131]
[1726006522653,0.399,2384.6,2384.2,3.27]
[1726006522854,0.41936,2384.5,2384.2,4.36295339]
[1726006523153,1.04816,2385.0,2384.3,23.4015]
[1726006523361,0.7641,2384.6,2384.3,23.4015]
[1726006523558,0.41937,2384.4,2384.3,23.4015]
[1726006523863,0.41937,2384.4,2384.3,23.0]
[1726006526756,0.41941,2384.2,2383.8,4.36295339]
[1726006526959,0.4194,2384.2,2383.8,4.36295339]
[1726006527269,0.7428,2384.1,2383.9,23.0]
[1726006527461,1.16222,2384.1,2383.9,23.0]
[1726006528867,0.7428,2384.1,2383.9,23.0]
[1726006529064,0.3718,2384.1,2384.0,3.27]
[1726006530666,0.79122,2384.1,2384.0,3.27]
[1726006530869,0.3718,2384.1,2383.6,3.27]
[1726006531061,0.3699,2384.0,2383.6,3.27]
[1726006531268,0.41949,2383.7,2383.6,3.27]
[1726006531568,1.4185,2384.0,2383.3,1.09295339]
[1726006531569,0.3717,2383.9,2383.3,1.09295339]
[1726006531769,1.83088,2383.6,2383.0,1.46365339]
[1726006532070,1.83088,2383.6,2383.3,23.0]
[1726006532071,0.41955,2383.4,2383.3,23.0]
[1726006536174,0.79124,2383.5,2383.3,23.0]
[1726006536673,1.43884444,2384.2,2383.3,23.0]
[1726006536674,11.21889429,2384.3,2383.4,7.466]
[1726006536864,0.3844,2383.8,2383.7,3.27]
[1726006537064,0.3867,2384.1,2383.7,3.27]
[1726006537279,0.3867,2384.1,2383.7,3.68948]
[1726006537477,0.3867,2384.1,2383.9,3.27]
[1726006538375,0.3867,2384.1,2383.9,3.68945]
[1726006538675,0.3867,2384.1,2383.9,3.27]
[1726006539272,0.41941,2384.2,2383.9,3.27]
[1726006539472,0.80611,2384.2,2383.9,3.27]
[1726006539666,0.3867,2384.2,2383.9,3.27]
[1726006541879,0.80611,2384.2,2383.9,3.27]
[1726006542077,0.8061,2384.2,2383.9,3.27]
[1726006543074,0.3867,2384.2,2383.9,3.27]
[1726006543275,0.41943,2384.1,2383.9,3.27]
[1726006543475,0.80611,2384.2,2383.9,3.27]
[1726006544972,0.41943,2384.1,2383.9,3.27]
[1726006545481,0.80611,2384.2,2383.9,3.27]
[1726006550374,0.41942,2384.1,2383.9,3.27]
[1726006550575,0.80611,2384.2,2383.9,3.27]
[1726006551381,0.80611,2384.2,2383.9,3.68945]
[1726006551382,0.3867,2384.2,2383.9,3.68945]
[1726006551783,0.8061,2384.2,2383.9,3.68945]
[1726006551986,0.41938,2384.4,2383.9,3.27]
[1726006552283,0.7913,2384.7,2384.1,3.27]
[1726006552485,5.14322,2384.9,2384.0,0.3722]
[1726006552486,4.095,2384.9,2384.6,0.41932]
[1726006552684,0.3923,2385.2,2384.8,3.68929]
[1726006552882,0.3923,2385.2,2384.9,23.0]
[1726006553289,0.41926,2385.0,2384.9,23.0]
[1726006553583,0.41925,2385.1,2384.9,23.0]
[1726006553990,0.4007,2385.0,2384.9,23.0]
[1726006554486,0.81996,2385.0,2384.9,23.0]
[1726006555885,0.4007,2385.0,2384.9,23.0]
[1726006556681,0.81996,2385.0,2384.9,23.0]
[1726006557784,0.3923,2385.2,2384.9,23.0]
[1726006558181,0.3923,2385.2,2384.6,3.27]
[1726006558380,0.41928,2384.9,2384.6,3.27]
[1726006558579,0.41927,2385.0,2384.7,23.0]
[1726006558781,0.41929,2384.9,2384.7,23.0]
[1726006558992,0.7513,2384.9,2384.7,23.0]
[1726006559489,0.81154,2385.2,2384.7,23.41931]
[1726006559692,0.81154,2385.2,2384.7,23.0]
[1726006559693,0.41924,2385.1,2384.7,23.0]
[1726006559877,0.41924,2385.1,2384.7,23.41931]
[1726006560074,1.56284,2385.2,2384.8,3.68929]
[1726006560281,0.79724,2385.2,2384.9,0.3811]
[1726006560482,0.79723,2385.2,2384.9,0.7469]
[1726006560795,0.79724,2385.2,2384.9,0.7469]
[1726006561384,7.05151285,2385.7,2385.0,3.27]
[1726006561385,4.8573,2385.7,2385.0,3.27]
[1726006561592,0.41923,2385.2,2385.0,3.27]
[1726006561990,0.41922,2385.3,2385.0,3.27]
[1726006562493,0.78282,2385.3,2385.0,3.27]
[1726006563085,0.41922,2385.3,2385.0,7.4628]
[1726006563399,0.7523,2385.6,2385.0,3.27]
[1726006563986,0.41921,2385.3,2385.0,3.27]
[1726006564187,0.41921,2385.3,2385.1,23.0]
[1726006564590,0.41923,2385.2,2385.1,23.0]
[1726006564780,0.41922,2385.3,2385.1,23.0]
[1726006564987,0.3854,2385.2,2385.1,23.0]
[1726006565384,0.7688,2385.2,2385.1,23.0]
[1726006565889,1.18803,2385.2,2385.1,23.0]
[1726006566090,0.7688,2385.2,2385.0,3.27]
[1726006566398,1.18803,2385.2,2385.0,3.27]
[1726006566787,0.41924,2385.1,2384.9,23.0]
[1726006567083,0.41924,2385.1,2384.8,3.27]
[1726006567084,0.41926,2385.0,2384.8,3.27]
[1726006567290,0.41927,2385.0,2384.8,3.27]
[1726006567685,0.41927,2385.0,2384.8,26.27]
[1726006571295,0.41928,2384.9,2384.8,26.27]
[1726006571498,0.41928,2384.9,2384.8,23.0]
[1726006571692,0.41928,2384.9,2384.2,3.481]
[1726006571693,11.241,2384.9,2384.2,3.481]
[1726006572000,0.41934,2384.6,2384.1,0.41942]
[1726006572187,0.78776,2384.5,2384.2,26.27]
[1726006572697,0.81492,2384.7,2384.2,26.68939]
[1726006572883,0.3956,2384.7,2384.4,3.27]
[1726006573087,1.15731,2384.8,2384.4,3.27]
[1726006573390,0.41932,2384.7,2384.4,3.27]
[1726006574589,1.15731,2384.8,2384.4,3.27]
[1726006574787,1.15731,2384.8,2384.5,0.3676]
[1726006575388,0.41928,2385.0,2384.6,3.27]
[1726006575588,0.41928,2384.9,2384.6,3.27]
[1726006576897,0.4193,2384.8,2384.6,3.27]
[1726006580795,0.769,2385.0,2384.6,3.27]
[1726006580994,1.18827,2385.0,2384.6,3.68932]
[1726006581700,1.18827,2385.0,2384.5,0.3676]
[1726006581701,0.769,2385.0,2384.5,0.3676]
[1726006581895,0.41932,2384.7,2384.5,0.3676]
[1726006582103,0.41932,2384.7,2384.5,3.6376]
[1726006582301,0.769,2385.0,2384.5,3.6376]
[1726006582302,0.41933,2384.6,2384.5,3.6376]
[1726006582791,0.41932,2384.7,2384.5,7.8312]
[1726006582996,0.41932,2384.7,2384.5,3.6376]
[1726006583499,1.8172,2385.0,2384.5,3.6376]
[1726006583693,0.41932,2384.7,2384.5,3.6376]
[1726006583898,0.41931,2384.8,2384.5,3.6376]
[1726006584299,0.41931,2384.8,2384.5,4.05695]
[1726006584500,0.41931,2384.8,2384.5,3.6376]
[1726006589105,5.14293,2385.6,2384.6,4.1936]
[1726006589306,0.79951,2385.3,2385.0,0.41926]
[1726006589509,0.79951,2385.3,2385.0,0.7838]
[1726006590202,0.41923,2385.2,2385.0,0.7838]
[1726006590403,0.41923,2385.2,2385.0,0.3971]
[1726006592904,0.3803,2385.3,2385.0,0.3971]
[1726006593412,0.79952,2385.3,2385.0,0.3971]
[1726006594009,0.41923,2385.2,2385.0,0.3971]
[1726006594408,1.04793,2385.6,2385.1,4.1928]
[1726006594621,4.33576121,2385.9,2385.1,4.07814]
[1726006594622,2.17395,2385.8,2385.1,4.07814]
[1726006594913,0.41918,2385.5,2385.1,4.07814]
[1726006595515,0.41919,2385.4,2385.1,4.07814]
[1726006596314,13.94494308,2386.2,2385.1,4.07814]
[1726006596315,1.04772,2386.0,2385.3,3.27]
[1726006596517,0.41915,2385.7,2385.4,0.3776]
[1726006596705,0.41915,2385.7,2385.5,23.0]
[1726006597118,0.41914,2385.7,2385.5,23.0]
[1726006597312,0.41916,2385.6,2385.5,23.0]
[1726006599509,0.41916,2385.6,2385.3,3.27]
[1726006599723,0.7789,2385.5,2385.3,3.27]
[1726006599918,0.7789,2385.5,2385.4,23.0]
[1726006600118,0.7789,2385.5,2384.9,3.11410552]
[1726006600416,0.41921,2385.3,2385.0,3.27]
[1726006600614,0.41921,2385.3,2385.1,23.0]
[1726006601223,0.3917,2385.4,2385.1,23.0]
[1726006601422,0.41923,2385.2,2385.1,23.0]
[1726006601627,0.41922,2385.3,2385.1,23.0]
[1726006603217,0.41918,2385.5,2385.2,7.4628]
[1726006603421,0.3912,2385.4,2385.2,3.27]
[1726006604418,0.81039,2385.4,2385.2,3.27]